[Event "5th Sharjah Masters 2022"]
[Site "Sharjah"]
[Date "2022.05.27"]
[Round "7.14"]
[White "Muradli, Mahammad"]
[Black "Chigaev, Maksim"]
[Result "0-1"]
[ECO "D17"]
[WhiteElo "2539"]
[BlackElo "2631"]
[Annotator "TA"]
[PlyCount "112"]
[EventDate "2022.05.21"]
[EventType "swiss"]
[EventCountry "UAE"]
[SourceTitle "playchess.com"]
[Source "ChessBase"]
[SourceQuality "1"]
[TimeControl "5400+30"]

{[%evp 15,112,27,18,22,25,11,15,17,25,24,34,34,34,27,29,32,29,0,0,0,0,0,15,-37,23,0,0,0,0,6,7,0,8,1,0,15,16,20,66,41,45,44,57,16,22,14,21,3,10,0,16,1,60,35,39,0,0,0,0,0,7,0,6,0,9,5,4,0,7,6,45,16,31,0,0,0,0,0,0,0,0,-37,-39,-130,-125,-121,-25,-25,-31,-226,-224,-525,-528,-1014,-562,-29993,-29994,-29997,-29998]} 1. d4 {[%emt 0:00:13]} d5 {[%emt 0:00:09]} 2. c4 {[%emt 0:00:06]} c6 {[%emt 0:00:06]} 3. Nf3 {[%emt 0:00:15]} Nf6 {[%emt 0:00:06]} 4. Nc3 {[%emt 0:00:12]} dxc4 {[%emt 0:00:08]} 5. a4 {[%emt 0:00:20]} Bf5 {[%emt 0:00:13]} 6. Ne5 {[%emt 0:02:09]} Nbd7 {[%emt 0:00:21]} 7. Nxc4 {[%emt 0:00:47]} Nb6 {[%emt 0:00:07]} 8. Ne5 {[%emt 0:04:57]} a5 {[%emt 0:00:08]} 9. f3 {[%emt 0:03:26] D17: Slav Defence: 5 a4 Bf5: Lines with 6 Nh4 and 6 Ne5.} Nfd7 {[%emt 0:00:07]} 10. Nxd7 {[%emt 0:14:55]} Bxd7 {[%emt 0:01:13]} 11. e4 {[%emt 0:00:20] The position is equal.} e6 {[%emt 0:00:08]} 12. Be3 {[%emt 0:01:19] [#]} Be7 $146 {[%emt 0:05:59]} ({Predecessor:} 12... Bb4 13. Be2 O-O 14. O-O Rc8 15. Qb3 c5 16. Rfd1 Qe7 17. Kh1 Rfd8 18. dxc5 Bxc5 19. Bxc5 Qxc5 {0-1 (41) Popilski,G (2464)-Lazavik,D (2465) Chess.com INT 2021}) 13. Be2 {[%emt 0:05:05]} O-O {[%emt 0:00:22]} 14. O-O {[%emt 0:11:27]} Rc8 {[%emt 0:00:07]} 15. Rc1 {[%emt 0:03:35]} c5 {[%emt 0:00:59]} 16. Nb5 {[%emt 0:12:35][%cal Rd4c5]} c4 {[%emt 0:05:43]} 17. Nc3 {[%emt 0:00:14]} Bb4 {[%emt 0:10:40]} 18. Ra1 {[%emt 0:00:16]} Qe7 {[%emt 0:19:03]} 19. g4 {[%emt 0:09:16]} ({White should try} 19. Kh1 $11) 19... e5 {[%emt 0:12:18]} (19... Qe8 $15) 20. dxe5 {[%emt 0:10:09]} (20. d5 $5 {[%cal Re3b6]} Bc5 21. Bxc5 Qxc5+ 22. Kg2 $14) 20... Bc5 {[%emt 0:00:08]} 21. Bxc5 {[%emt 0:00:41]} Qxc5+ {[%emt 0:00:02]} 22. Kg2 {[%emt 0:00:09]} Qxe5 {[%emt 0:00:27]} 23. Qe1 {[%emt 0:00:32]} Bc6 {[%emt 0:03:51]} 24. Qf2 {[%emt 0:01:51]} Qc7 {[%emt 0:00:01]} 25. Qc5 {[%emt 0:01:29][%csl LRa5,LRc4]} Nd7 {[%emt 0:00:10]} 26. Qxc4 {[%emt 0:01:07]} Ne5 {[%emt 0:01:34]} (26... Rfd8 $11) 27. Qd4 {[%emt 0:01:44]} Ng6 {[%emt 0:00:28]} 28. Qe3 {[%emt 0:01:09]} Nf4+ {[%emt 0:00:53]} 29. Kg1 {[%emt 0:00:45]} Qe5 {[%emt 0:00:18]} 30. Kh1 {[%emt 0:02:46]} Rfd8 {[%emt 0:13:18]} 31. Rfd1 {[%emt 0:00:26]} g6 {[%emt 0:00:23]} 32. Rxd8+ {[%emt 0:04:58]} Rxd8 {[%emt 0:00:10]} 33. Rd1 {[%emt 0:00:13]} Rc8 {[%emt 0:08:45]} (33... Rxd1+ $11 34. Bxd1 h5) 34. Qd4 {[%emt 0:00:45]} Qg5 {[%emt 0:01:01]} 35. Bf1 {[%emt 0:01:17]} h5 {[%emt 0:00:33]} 36. gxh5 {[%emt 0:00:27]} Qxh5 {[%emt 0:00:14]} 37. Qe3 {[%emt 0:00:41]} Qe5 {[%emt 0:00:25]} 38. Qd4 {[%emt 0:02:34]} Qh5 {[%emt 0:00:25]} 39. Qe3 {[%emt 0:00:02]} Qe5 {[%emt 0:00:11]} 40. Rd2 {[%emt 0:01:23]} Kg7 {[%emt 0:03:01]} 41. Qd4 {[%emt 0:01:17]} Qxd4 {[%emt 0:00:57]} 42. Rxd4 {[%emt 0:00:01]} Rh8 {[%emt 0:00:10]} 43. Kg1 {[%emt 0:01:36]} Kf6 {[%emt 0:01:34]} 44. Rd2 {[%emt 0:00:01]} (44. Rc4 $5 {[%cal Rc4c5]}) 44... Ke5 {[%emt 0:00:32]} 45. Nb5 {[%emt 0:01:34]} Ne6 {[%emt 0:01:46]} 46. Nd6 {[%emt 0:01:22]} Ng5 {[%emt 0:01:49]} 47. Be2 {[%emt 0:00:19]} Kf4 {[%emt 0:00:32]} 48. Nc4 {[%emt 0:00:29]} (48. Kg2 $5 {[%cal Rd6c4]}) 48... Bxa4 {[%emt 0:00:30] Strongly threatening ...b5.} 49. Rd4 {[%emt 0:01:15] [#]} (49. Nb6 $15 Bc6 50. Kg2) 49... Ne6 $1 $17 {[%emt 0:02:53]} ({Much worse is} 49... Nxf3+ $6 50. Bxf3 Kxf3 51. Ne5+ Kf4 52. Nxf7 $11) 50. Rd5 {[%emt 0:00:23] [#]} Bb3 {[%emt 0:00:39]} ({Better is} 50... Bc6 $1 $17 {[%cal Rc6d5]} 51. Rxa5 Nd4) 51. Rd7 $11 {[%emt 0:00:22]} Ng5 {[%emt 0:00:45] ...Bxc4 is the strong threat.} 52. Nxa5 {[%emt 0:00:14] Now White is beyond hope.} ({White has to play} 52. Nb6 $1 $15) 52... Be6 $19 {[%emt 0:00:20]} 53. Rxb7 {[%emt 0:00:48]} (53. Rc7 Nh3+ 54. Kf1) 53... Ke3 {[%emt 0:00:09]} 54. Bd1 {[%emt 0:00:27]} Rd8 {[%emt 0:01:15][%mdl 64] Deflection} 55. Bb3 {[%emt 0:00:14]} Rd2 {[%emt 0:00:21]} ({Wrong is} 55... Nxf3+ $2 56. Kg2 Kf4 57. Bd5 $19) 56. Kh1 {[%emt 0:01:02]} Nxf3 {[%emt 0:00:15] Weighted Error Value: White=0.38/Black=0.19 (very precise)} 0-1

[Event "5th Sharjah Masters 2022"]
[Site "Sharjah"]
[Date "2022.05.27"]
[Round "7.15"]
[White "Mchedlishvili, Mikheil"]
[Black "Yakubboev, Nodirbek"]
[Result "1/2-1/2"]
[ECO "E01"]
[WhiteElo "2595"]
[BlackElo "2630"]
[Annotator "TA"]
[PlyCount "50"]
[EventDate "2022.05.21"]
[EventType "swiss"]
[EventCountry "UAE"]
[SourceTitle "playchess.com"]
[Source "ChessBase"]
[SourceQuality "1"]
[TimeControl "5400+30"]

{[%evp 10,50,30,19,24,22,27,14,27,3,8,-28,0,0,-4,-25,-9,-10,-9,-7,-10,-9,-16,-14,0,0,0,0,10,0,0,0,0,0,0,0,0,0,0,0,0,0,4]} 1. d4 {[%emt 0:00:06]} Nf6 {[%emt 0:00:10]} 2. c4 {[%emt 0:00:13]} e6 {[%emt 0:00:44]} 3. g3 {[%emt 0:01:32]} d5 {[%emt 0:01:48]} 4. Bg2 {[%emt 0:00:37]} Nc6 {[%emt 0:01:59]} 5. Nf3 {[%emt 0:01:43]} Bd6 {[%emt 0:00:53]} 6. O-O {[%emt 0:02:15]} O-O {[%emt 0:00:14] 6...0-0 is better than 6...dxc4. E01: Catalan: Early deviations.} 7. Nbd2 {[%emt 0:07:00]} a5 {[%emt 0:07:13]} 8. Qc2 {[%emt 0:03:56] [#]} Nb4 $146 {[%emt 0:05:46]} ({Predecessor:} 8... Bd7 9. e4 dxe4 10. Nxe4 Nxe4 11. Qxe4 Qf6 12. c5 Be7 13. Bf4 Rfc8 14. Ne5 Be8 {1-0 (40) Niemann,H (2635)-Rakhmatullaev,A (2183) Tashkent 2021}) 9. Qc3 {[%emt 0:13:12]} c5 {[%emt 0:14:27]} 10. cxd5 {[%emt 0:09:20]} cxd4 {[%emt 0:08:15]} 11. Nxd4 {[%emt 0:00:12] Threatens to win with dxe6.} Nfxd5 {[%emt 0:01:33]} 12. Qb3 {[%emt 0:00:19]} Bc5 {[%emt 0:04:34]} 13. a3 {[%emt 0:09:29] The position is equal.} Bxd4 {[%emt 0:07:48]} 14. axb4 {[%emt 0:00:08]} Nxb4 {[%emt 0:00:04]} 15. Nc4 {[%emt 0:00:19][%cal Bd2c4,Bc4e5,Be5d3][%mdl 32]} e5 {[%emt 0:08:29] [#] Strongly threatening ...Be6.} 16. Bd2 {[%emt 0:01:09]} Bc5 {[%emt 0:05:26]} 17. Bxb4 {[%emt 0:04:48]} (17. Qc3 {looks sharper.} Be6 18. Qxe5 Bd4 19. Qe4) 17... Bxb4 {[%emt 0:00:05]} 18. Nxe5 {[%emt 0:00:04]} Be6 {[%emt 0:05:59] Prevents Bd5.} 19. Qf3 {[%emt 0:00:25]} Qd4 {[%emt 0:00:38]} 20. Nd3 {[%emt 0:05:15]} Bg4 {[%emt 0:04:00] This bishop pair is nice.} 21. Qxb7 {[%emt 0:10:39]} Rab8 {[%emt 0:00:06]} 22. Qd5 {[%emt 0:01:02]} Qxd5 {[%emt 0:00:42]} 23. Bxd5 {[%emt 0:00:06]} Bxe2 {[%emt 0:00:04]} 24. Nxb4 {[%emt 0:00:27]} Rxb4 {[%emt 0:00:08]} ({Much less strong is} 24... Bxf1 25. Nc6 Bd3 26. Nxb8 Rxb8 27. Rxa5 $16) 25. Rfe1 {[%emt 0:00:23]} Rxb2 {[%emt 0:00:52] An even fight not without its subleties.  Weighted Error Value: White=0.06 (flawless) /Black=0.05 (flawless)} 1/2-1/2

[Event "5th Sharjah Masters 2022"]
[Site "Sharjah"]
[Date "2022.05.27"]
[Round "7.16"]
[White "Van Foreest, Lucas"]
[Black "Jumabayev, Rinat"]
[Result "1/2-1/2"]
[ECO "E32"]
[WhiteElo "2572"]
[BlackElo "2628"]
[Annotator "TA"]
[PlyCount "96"]
[EventDate "2022.05.21"]
[EventType "swiss"]
[EventCountry "UAE"]
[SourceTitle "playchess.com"]
[Source "ChessBase"]
[SourceQuality "1"]
[TimeControl "5400+30"]

{[%evp 9,96,25,31,22,6,6,20,25,22,-17,-27,-19,0,0,0,0,0,0,0,0,0,0,0,-42,-17,-16,-31,-42,-6,-22,-14,0,0,0,0,-38,-38,-39,-39,-39,-38,-111,-98,-124,-111,-204,-204,-353,-266,-368,-247,-326,-319,-319,-270,-493,-246,-218,-195,-195,-195,-195,-195,-239,-228,-715,-502,-507,-500,-489,-476,-480,-472,-453,-243,-227,-219,-208,-103,-104,0,0,0,0,0,0,0,0,0]} 1. d4 {[%emt 0:00:09]} Nf6 {[%emt 0:00:25]} 2. c4 {[%emt 0:00:21]} e6 {[%emt 0:00:07]} 3. Nc3 {[%emt 0:00:16]} Bb4 {[%emt 0:00:06]} 4. Qc2 {[%emt 0:00:05]} d6 {[%emt 0:00:11]} 5. e3 {[%emt 0:00:53]} O-O {[%emt 0:00:25]} 6. a3 {[%emt 0:00:16] E32: Nimzo-Indian: Classical (4 Qc2): 4...0-0.} Bxc3+ {[%emt 0:00:05]} 7. Qxc3 {[%emt 0:00:03]} e5 {[%emt 0:05:06]} 8. Nf3 {[%emt 0:09:21]} Re8 {[%emt 0:12:08] [#]} 9. h3 $146 {[%emt 0:02:37][%cal Rd4e5]} ({Predecessor:} 9. dxe5 dxe5 10. b4 a5 11. Bb2 axb4 12. axb4 Rxa1+ 13. Bxa1 Bg4 14. Be2 c5 15. Nxe5 Bxe2 16. Kxe2 cxb4 17. Qxb4 {1-0 (40) Delchev,A (2613)-Zelcic,R (2578) Zadar 2007}) 9... exd4 {[%emt 0:23:54]} 10. Nxd4 {[%emt 0:03:54]} c5 {[%emt 0:00:55]} 11. Nf3 {[%emt 0:01:27]} Nc6 {[%emt 0:02:27]} 12. Bd3 {[%emt 0:01:34]} d5 {[%emt 0:03:18]} 13. O-O {[%emt 0:06:06]} Ne4 {[%emt 0:00:44]} 14. Qc2 {[%emt 0:00:44]} Bf5 {[%emt 0:03:19]} 15. b3 {[%emt 0:06:58]} dxc4 {[%emt 0:07:53]} 16. bxc4 {[%emt 0:00:07]} Qe7 {[%emt 0:14:41]} 17. Bb2 {[%emt 0:00:52]} Rad8 {[%emt 0:00:44]} 18. Rad1 {[%emt 0:01:06][%cal Of3e5]} Bg6 {[%emt 0:19:06]} (18... Rd6 $5 {[%cal Re8d8]}) 19. Ba1 {[%emt 0:03:25]} (19. Ne5 $5) 19... Ng5 {[%emt 0:03:42]} (19... b6 {looks sharper.} 20. Ne5 Nxe5 21. Bxe4 Bxe4 22. Qxe4 Ng6) 20. Nxg5 {[%emt 0:00:41] Hoping for Bxg6.} Qxg5 {[%emt 0:00:24]} 21. Bxg6 {[%emt 0:00:29]} Qxg6 {[%emt 0:00:09]} 22. Qxg6 {[%emt 0:01:54]} hxg6 {[%emt 0:00:04]} 23. Rd5 $1 {[%emt 0:00:08]} b6 {[%emt 0:00:37][%cal Bb7b6,Bb6b5,Bb5b4][%mdl 32]} 24. Rfd1 {[%emt 0:00:41]} Rc8 {[%emt 0:00:21]} 25. Bc3 {[%emt 0:01:51]} (25. Rc1 $15) 25... Re4 $17 {[%emt 0:00:21]} 26. R1d3 {[%emt 0:08:51]} Rxc4 {[%emt 0:00:02]} 27. f3 {[%emt 0:00:06]} (27. Kf1 $17) 27... b5 $19 {[%emt 0:00:31]} 28. Bd2 {[%emt 0:00:43]} (28. Kf2 {was worth a try.}) 28... a5 {[%emt 0:01:41]} 29. e4 {[%emt 0:00:02]} Rc2 {[%emt 0:00:48] ...b4 is the strong threat.} 30. Rc3 {[%emt 0:04:59]} Rxc3 {[%emt 0:00:05]} 31. Bxc3 {[%emt 0:45:21][%mdl 4096] Endgame KRB-KRN} b4 {[%emt 0:00:06]} 32. Be1 {[%emt 0:00:00]} (32. Ba1 c4 33. Kf2) 32... c4 {[%emt 0:01:10]} (32... b3 $142 {White must now prevent ...Nd4.} 33. Bc3 Nb4 $1 34. axb4 cxb4) 33. Rc5 {[%emt 0:00:00]} c3 {[%emt 0:00:49] Strongly threatening ...Na7.} (33... bxa3 34. Bc3 $17) 34. Kf2 {[%emt 0:00:00]} Kf8 {[%emt 0:00:21]} ({Stronger than} 34... bxa3 35. Bxc3 a2 36. Ba1 $15) 35. Ke3 {[%emt 0:00:00]} Ke8 {[%emt 0:00:14]} (35... bxa3 36. Rxc3 a2 37. Ra3 $11) 36. Bg3 {[%emt 0:00:00]} Kd7 {[%emt 0:00:54]} ({Weaker is} 36... bxa3 37. Be5 $17) 37. Bf4 $2 {[%emt 0:00:00]} (37. Be1) 37... f6 {[%emt 0:00:16]} 38. Rd5+ {[%emt 0:00:00]} Ke6 {[%emt 0:00:19]} 39. Rc5 {[%emt 0:00:00]} bxa3 {[%emt 0:00:53] Threatens to win with ...a2.} 40. Rxc3 {[%emt 0:00:00]} a2 {[%emt 0:00:05]} ({Don't blunder} 40... g5 $2 41. Rxa3 gxf4+ 42. Kxf4 $19) 41. Ra3 {[%emt 0:00:00]} Nb4 {[%emt 0:00:07]} (41... g5 $142 42. Rxa2 gxf4+ 43. Kxf4 Ra8) 42. Ke2 {[%emt 0:00:00]} Rc2+ {[%emt 0:01:24]} 43. Bd2 {[%emt 0:00:00]} Nc6 {[%emt 0:00:31]} (43... Rb2 $19 {and Black stays clearly on top.} 44. Rxa5 Kd6) 44. Kd3 $17 {[%emt 0:00:00][%csl LRa5,LRc2] [#]} Rb2 {[%emt 0:00:26]} (44... Nd4 $1 $17 {[%mdl 512]} 45. Bf4 (45. Kxd4 Rxd2+) 45... g5) 45. Kc3 $11 {[%emt 0:00:00] The position is equal.} Rb5 {[%emt 0:00:31]} 46. Rxa2 {[%emt 0:00:00]} g5 {[%emt 0:00:08]} 47. Kc4 {[%emt 0:00:00]} Rb8 {[%emt 0:00:50]} 48. Bc3 {[%emt 0:00:00]} Rc8 {[%emt 0:01:07] Weighted Error Value: White=0.31/Black=0.29 (precise)} 1/2-1/2

[Event "5th Sharjah Masters 2022"]
[Site "Sharjah"]
[Date "2022.05.27"]
[Round "7.17"]
[White "Sadhwani, Raunak"]
[Black "Can, Emre"]
[Result "0-1"]
[ECO "B51"]
[WhiteElo "2619"]
[BlackElo "2599"]
[Annotator "TA"]
[PlyCount "89"]
[EventDate "2022.05.21"]
[EventType "swiss"]
[EventCountry "UAE"]
[SourceTitle "playchess.com"]
[Source "ChessBase"]
[SourceQuality "1"]
[TimeControl "5400+30"]

{[%evp 9,89,0,11,21,18,18,24,31,18,35,40,42,79,16,14,22,16,27,17,26,27,0,0,0,0,-5,0,0,27,20,97,97,108,99,112,123,112,120,113,104,110,100,116,104,128,127,141,85,97,78,74,75,81,80,114,108,137,118,129,96,85,0,21,-187,-152,-353,-351,-339,-356,-499,-511,-502,-497,-485,-402,-510,-496,-604,-593,-1103,-1050,-794]} 1. e4 {[%emt 0:00:03]} c5 {[%emt 0:00:20]} 2. Nf3 {[%emt 0:00:05][%cal Bg1f3,Bf3d4,Bd4c6][%mdl 32]} d6 {[%emt 0:00:20]} 3. Bb5+ {[%emt 0:00:49]} Nd7 {[%emt 0:00:20]} 4. Be2 {[%emt 0:00:03]} Ngf6 {[%emt 0:00:52]} 5. Nc3 {[%emt 0:00:11]} g6 {[%emt 0:05:07]} 6. d4 {[%emt 0:00:20] B51: Sicilian: Moscow Variation (3 Bb5+) without 3...Bd7.} cxd4 {[%emt 0:00:20]} 7. Nxd4 {[%emt 0:00:07]} Bg7 {[%emt 0:00:47]} 8. Be3 {[%emt 0:00:19] White has an edge.} a6 {[%emt 0:04:29] [#]} 9. f3 $146 {[%emt 0:02:04]} ({Predecessor:} 9. a4 Qc7 10. O-O b6 11. Nd5 Nxd5 12. exd5 Bb7 13. c4 O-O 14. Rc1 Rae8 15. Qc2 {1-0 (32) Esipenko,A (2592)-Divya,D (2239) Riga 2021}) 9... b5 {[%emt 0:06:55]} 10. a4 {[%emt 0:02:00]} bxa4 {[%emt 0:00:09]} 11. Nxa4 {[%emt 0:15:18]} (11. Rxa4 $16 Nc5 12. Ra3) 11... d5 $11 {[%emt 0:12:07]} 12. Nc6 {[%emt 0:13:41][%csl LRd5,LRd8]} Qc7 {[%emt 0:00:35]} 13. exd5 {[%emt 0:00:03]} Nxd5 {[%emt 0:04:16]} 14. Qxd5 {[%emt 0:00:12]} Bb7 $1 {[%emt 0:00:07]} 15. Nc3 {[%emt 0:00:04][%cal Oc3b5]} Bxc6 {[%emt 0:02:18]} 16. Qa5 $36 {[%emt 0:00:05][%mdl 2048] White has some pressure.} Qb7 {[%emt 0:16:11]} 17. Ra2 {[%emt 0:00:59][%cal Re2a6]} O-O {[%emt 0:01:20][%cal Oc6b5]} 18. O-O {[%emt 0:02:02]} Bb5 {[%emt 0:10:29] aiming for ...Bxc3.} 19. Qb4 {[%emt 0:02:00][%cal Rc3b5]} ({Wrong is} 19. Nxb5 $2 axb5 20. Qxb5 (20. Ba7 $2 Qxa7+ 21. Qxa7 Rxa7 $19) 20... Qxb5 21. Bxb5 Rxa2 $19) 19... Bxc3 {[%emt 0:00:59]} (19... Nb8 $11 {keeps the balance.}) 20. bxc3 $16 {[%emt 0:00:10][%cal Bb2c3,Bc3c4][%mdl 32]} Qd5 {[%emt 0:01:34]} 21. c4 $1 {[%emt 0:00:13]} Qe6 {[%emt 0:00:11] [#]} 22. Qb3 {[%emt 0:03:58]} Bc6 {[%emt 0:00:23]} 23. Ra5 {[%emt 0:00:14]} Rfb8 {[%emt 0:02:13]} 24. Qc3 {[%emt 0:04:03]} Rc8 {[%emt 0:02:31][%cal Oc6b5]} 25. Qd4 {[%emt 0:01:16]} Qf6 {[%emt 0:05:09]} 26. Qd2 {[%emt 0:02:55]} Rd8 {[%emt 0:04:36][%cal Od7c5]} 27. Rd1 {[%emt 0:01:18]} Bb7 {[%emt 0:02:19]} 28. Ra3 {[%emt 0:02:30]} (28. Bf1 $142) 28... Nf8 {[%emt 0:02:38]} 29. Qxd8 {[%emt 0:14:09]} Rxd8 {[%emt 0:00:31]} 30. Rxd8 {[%emt 0:00:02]} Kg7 {[%emt 0:00:16]} 31. Rb3 {[%emt 0:01:39]} ({Weaker is} 31. Rb8 Qd6 32. Rxb7 Qxa3 33. Bd4+ Kg8 $17) 31... Ne6 {[%emt 0:00:09]} 32. Rdd3 {[%emt 0:02:10]} Bc6 {[%emt 0:01:46]} 33. Rb6 {[%emt 0:00:19][%csl LRa6,LRc6]} Qa1+ {[%emt 0:00:26]} 34. Bf1 {[%emt 0:09:11]} Qa4 {[%emt 0:00:06][%csl LRc2,LRc4]} 35. Bd2 {[%emt 0:01:43]} (35. Bf2 $16) 35... Qxc4 $11 {[%emt 0:02:21] And now ...Bb5 would win.} 36. Bc3+ $2 {[%emt 0:00:05]} (36. Re3 $1 $11 {and White stays safe.} Qd5 37. Rd3 Qc5+ 38. Be3 Qxc2 39. Rd2) 36... f6 $19 {[%emt 0:00:16] ...Qc5+ is the strong threat.} 37. Bb4 {[%emt 0:18:33] [#] Prevents Qc5+. This move loses the game for White.} (37. Be1 $17 {only move.} Bb5 38. Bf2) 37... Bb5 $1 {[%emt 0:06:53]} 38. Bxe7 {[%emt 0:00:53][%cal Oh2h4]} Qxc2 {[%emt 0:01:02]} 39. Re3 {[%emt 0:02:02]} (39. Rxb5 $142 axb5 40. Bb4) 39... Bxf1 {[%emt 0:02:37][%csl Gf1][%cal Rc2g2]} 40. Bxf6+ {[%emt 0:00:43]} Kf7 {[%emt 0:00:53][%csl Gf1][%cal Rc2g2]} 41. Kxf1 {[%emt 0:00:07]} Qc4+ {[%emt 0:00:13]} 42. Kf2 {[%emt 0:00:14]} Kxf6 {[%emt 0:00:07] Black is clearly winning.} 43. g4 {[%emt 0:00:10] [#]} g5 $1 {[%emt 0:01:16][%cal Oa6a5,Bg6g5,Bg5h4][%mdl 32]} 44. h4 {[%emt 0:00:09] [#]} (44. Ke1 Kf7) 44... gxh4 {[%emt 0:01:26]} 45. f4 {[%emt 0:03:49] Weighted Error Value: White=0.47/Black=0.07 (flawless)} (45. Rd6 a5) 0-1

[Event "5th Sharjah Masters 2022"]
[Site "Sharjah"]
[Date "2022.05.27"]
[Round "7.18"]
[White "Iskandarov, Misratdin"]
[Black "Adhiban, B.."]
[Result "1-0"]
[ECO "A20"]
[WhiteElo "2601"]
[BlackElo "2616"]
[Annotator "TA"]
[PlyCount "119"]
[EventDate "2022.05.21"]
[EventType "swiss"]
[EventCountry "UAE"]
[SourceTitle "playchess.com"]
[Source "ChessBase"]
[SourceQuality "1"]
[TimeControl "5400+30"]

{[%evp 9,119,0,12,14,15,6,33,28,41,0,0,0,0,11,6,0,15,14,20,16,15,22,40,0,0,0,37,20,4,0,0,-71,-86,-287,-217,-280,-299,-275,-247,-316,-195,-188,-140,-127,-55,-69,0,0,207,206,207,200,200,193,214,206,302,300,304,316,306,291,287,288,326,330,322,258,402,402,441,427,426,420,366,420,406,337,691,691,664,548,500,500,1806,1694,4677,3406,29957,29964,29953,3870,29965,29966,29966,29963,29962,12314,5096,4732,29979,29980,29985,29986,29986,29981,29981,29982,29982,29983,29994,29994]} 1. c4 {[%emt 0:00:05]} e5 {[%emt 0:01:43]} 2. g3 {[%emt 0:00:49]} Nf6 {[%emt 0:00:10]} 3. Bg2 {[%emt 0:00:12]} h6 {[%emt 0:00:04]} 4. Nc3 {[%emt 0:00:19]} Bb4 {[%emt 0:00:04]} 5. e4 {[%emt 0:01:50]} Bxc3 {[%emt 0:00:04]} 6. bxc3 {[%emt 0:00:24] A20: English Opening: 1...e5.} O-O {[%emt 0:00:51]} 7. Ne2 {[%emt 0:00:24]} c6 {[%emt 0:00:03]} 8. O-O {[%emt 0:05:07] White is slightly better.} Re8 {[%emt 0:08:29]} 9. d3 {[%emt 0:02:44]} d5 {[%emt 0:01:19]} 10. exd5 {[%emt 0:00:10]} cxd5 {[%emt 0:00:04]} 11. cxd5 {[%emt 0:00:06]} Nxd5 {[%emt 0:00:02]} 12. Qb3 {[%emt 0:01:59]} Nb6 {[%emt 0:01:14]} 13. c4 {[%emt 0:00:09]} Bg4 {[%emt 0:10:55]} 14. Re1 {[%emt 0:03:34]} Nc6 {[%emt 0:02:20][%cal Oe5e4]} 15. Be3 {[%emt 0:05:06] [#]} Rb8 $5 $146 {[%emt 0:21:10][%mdl 8] New and interesting.} ({Predecessor:} 15... Qd7 16. Rab1 Rad8 17. c5 Nd5 18. Qxb7 Qxb7 19. Rxb7 Ncb4 20. Nc3 Nxe3 21. Rxe3 Nc2 {1-0 (53) Navara,D (2738)-So,W (2765) Saint Louis 2019}) 16. Rac1 {[%emt 0:08:36]} Qd7 {[%emt 0:06:10]} 17. Nc3 {[%emt 0:14:20]} Qxd3 {[%emt 0:01:46]} 18. Nb5 {[%emt 0:00:49]} Qg6 {[%emt 0:01:18] [#]} 19. Nxa7 $1 {[%emt 0:12:39]} Nd4 {[%emt 0:01:56]} 20. Bxd4 {[%emt 0:10:45]} (20. Qc3 $11 {keeps the balance.}) 20... exd4 $17 {[%emt 0:00:31]} 21. f3 $2 {[%emt 0:07:00]} (21. Bf1 $17 {was called for.}) 21... Bf5 {[%emt 0:07:35]} 22. Red1 {[%emt 0:07:09]} d3 {[%emt 0:05:30]} 23. c5 {[%emt 0:06:07]} Nd7 {[%emt 0:01:54]} 24. Qb4 {[%emt 0:00:52]} Re2 {[%emt 0:07:41]} 25. Nb5 {[%emt 0:01:08][%cal Ba7b5,Bb5d4,Bd4f5,Bf5e7][%mdl 32]} Rbe8 {[%emt 0:12:11]} (25... Rxa2 $19 {...Qe6 is the strong threat.} 26. Nd4 Rba8) 26. Nd4 {[%emt 0:01:30] [#] Against Qe6} Rxa2 {[%emt 0:01:30]} (26... Ne5 $1 $17 {[%cal Re5c6] White must now prevent ...Nc6.} 27. Qxb7 (27. Qb3 Qf6) 27... Qh5 $1 28. Nxe2 dxe2) 27. Qb3 {[%emt 0:01:40] [#]} Ra5 {[%emt 0:01:33]} ({Black should try} 27... Ree2 $1 $15 28. Nxe2 Rxe2) 28. Qxb7 $11 {[%emt 0:01:28]} Rxc5 {[%emt 0:04:55] White stays focused until the end.} (28... Nxc5 $2 29. Qb4 Rea8 30. Rxc5 $18) (28... Qf6 $11 {and Black stays safe.} 29. Qd5 (29. Nxf5 Qxf5 30. c6 Nc5 $11) 29... Re5) 29. Rxc5 $18 {[%emt 0:00:42][%mdl 64] Remove Defender} Nxc5 {[%emt 0:00:02]} 30. Qd5 {[%emt 0:00:25][%csl LRc5,LRf5]} Qb6 {[%emt 0:01:27]} 31. Nxf5 {[%emt 0:03:19]} ({And not} 31. Qxf5 Rd8 32. Qf4 Nb3 33. Rxd3 Nxd4 $17) 31... Rd8 {[%emt 0:00:48] aiming for ...Ne4+.} 32. Qc6 {[%emt 0:00:54]} Qa7 {[%emt 0:00:26]} (32... Qb3 $142 33. Ne3 Qc3) 33. Kh1 {[%emt 0:00:35]} d2 {[%emt 0:00:09]} 34. Bf1 {[%emt 0:01:40][%cal Od1d2]} Qa4 {[%emt 0:00:20] [#]} 35. Be2 {[%emt 0:01:29]} Qxc6 {[%emt 0:01:06]} 36. Ne7+ {[%emt 0:00:05]} Kf8 {[%emt 0:00:24] ( -> ...Qe6)} 37. Nxc6 {[%emt 0:00:05]} Rd6 {[%emt 0:00:43]} 38. Ne5 {[%emt 0:00:43]} Re6 {[%emt 0:00:14]} (38... g5 $142 39. Nc4 Re6 40. Rxd2 Nb3) 39. f4 {[%emt 0:00:07]} f6 {[%emt 0:00:32]} 40. Ng6+ {[%emt 0:02:18]} Kf7 {[%emt 0:00:06]} 41. Bc4 {[%emt 0:00:04]} Kxg6 {[%emt 0:00:06]} 42. Bxe6 {[%emt 0:00:05]} Nxe6 {[%emt 0:00:03]} 43. Rxd2 {[%emt 0:00:06][%mdl 4096] Endgame KR-KN} f5 $2 {[%emt 0:01:42]} (43... Nc5 44. f5+ Kg5) 44. Kg2 {[%emt 0:00:19]} Kf6 {[%emt 0:00:25]} 45. Rd6 {[%emt 0:00:51]} Ke7 {[%emt 0:00:13]} 46. Rb6 {[%emt 0:00:12]} h5 {[%emt 0:00:28]} (46... Kf7 $142 47. Kf2 Kf6) 47. Kf3 {[%emt 0:00:18] Hoping for Ke3.} Kf7 {[%emt 0:00:36]} 48. Ke3 {[%emt 0:00:08]} g6 {[%emt 0:00:56]} 49. h4 {[%emt 0:00:46]} Nc5 {[%emt 0:00:36] [#] Against Rb7+} 50. Kd4 $1 {[%emt 0:00:18]} Ne4 {[%emt 0:00:02] [#]} 51. Ke5 $1 {[%emt 0:00:19]} Kg7 {[%emt 0:00:03]} 52. Rb3 {[%emt 0:00:18]} Nc5 {[%emt 0:00:47]} 53. Ra3 {[%emt 0:00:15]} (53. Rb5 $142 Ne4 54. Ke6 Kh6 55. Rb6 Kg7 56. Rb7+ Kh6 57. Ra7 g5 58. Ra6) 53... Ne4 {[%emt 0:00:08]} 54. Ra7+ {[%emt 0:00:35]} Kh6 {[%emt 0:00:05]} 55. Ke6 {[%emt 0:01:37] White mates.} Nxg3 {[%emt 0:00:23]} 56. Kf7 {[%emt 0:00:08]} Kh7 {[%emt 0:00:03]} 57. Ra2 {[%emt 0:02:26]} Ne4 {[%emt 0:01:21]} 58. Ra6 {[%emt 0:00:05]} Nc5 {[%emt 0:01:12]} 59. Rxg6 {[%emt 0:00:19]} Nd3 {[%emt 0:00:02]} 60. Rf6 {[%emt 0:00:13] Weighted Error Value: White=0.18 (very precise) /Black=0.60} 1-0